Department,Entity,Supplier Name,Payment Date,Transaction Number,Expense Area,Expense Type,Amount (Exluding VAT),Audited
FCOS,FCOS,SOLIRIUS LTD,04/05/2018,297285,Global Digital Technology,Work Packages,47162.96,
FCOS,FCOS,RIDGE AND PARTNERS LLP,09/05/2018,298347,Secure Global Services ,Building Maintenance,25000,
FCOS,FCOS,EVEREST AIRCON,04/05/2018,300872,Secure Global Services ,Building Works,71360.38,
FCOS,FCOS,IRG ADVISORS LLP (T/A ODGERS INTERIM),24/05/2018,301584,Secure Global Services ,Contingent Labour,25771.2,
FCOS,FCOS,CENTURY LINK,17/05/2018,301717,Global Digital Technology,IS Software,31714.8,
FCOS,FCOS,COMPUTACENTER UK LTD,02/05/2018,302376,Secure Global Services ,IS Hardware,34008,
FCOS,FCOS,OROSTREAM INTERNATIONAL CONTRACTS LTD,03/05/2018,302383,Secure Global Services ,Building Works,107010.4,
FCOS,FCOS,SOFTWARE AG (UK) LIMITED,15/05/2018,302624,Global Digital Technology,IS Software,31321.05,Y
FCOS,FCOS,COGENT ELECTRICAL SERVICES LTD,03/05/2018,302860,Secure Global Services ,Building Works,31530.47,
FCOS,FCOS,SARL INNOVABAT,03/05/2018,302872,Secure Global Services ,Building Works,89208.63,
FCOS,FCOS,IRG ADVISORS LLP (T/A ODGERS INTERIM),24/05/2018,303087,Secure Global Services ,Contingent Labour,28534.33,
FCOS,FCOS,CONCEPT BUILDING SERVICES SOUTHERN LTD,01/05/2018,303141,Secure Global Services ,Building Works,85830.69,
FCOS,FCOS,HELLMANN WORLDWIDE LOGISTICS LTD,02/05/2018,303292,Secure Global Services ,Freight & Transport,151166.75,
FCOS,FCOS,LA INTERNATIONAL COMPUTER CONSULTANTS LTD,01/05/2018,303412,Secure Global Services ,Contingent Labour,31833.64,
FCOS,FCOS,LA INTERNATIONAL COMPUTER CONSULTANTS LTD,01/05/2018,303414,Secure Global Services ,Contingent Labour,74082.84,
FCOS,FCOS,CONTROLLED BUILDING MEASURES LTD,22/05/2018,303417,Secure Global Services ,Building Maintenance,98067.3,
FCOS,FCOS,CONCEPT BUILDING SERVICES SOUTHERN LTD,02/05/2018,303433,Secure Global Services ,Professional Services,54724.04,
FCOS,FCOS,FELTECH ELECTRONICS LTD,03/05/2018,303546,Global Digital Technology,Office Equipment,96102.28,
FCOS,FCOS,COST PLANEJAMNETO CONSTRU��ES E COMERCIO EIRELI,02/05/2018,303547,Secure Global Services ,Building Works,28635.03,Y
FCOS,FCOS,AECOM LIMITED,09/05/2018,303668,Secure Global Services ,Building Maintenance,27965.33,
FCOS,FCOS,BYTES SOFTWARE SERVICES LTD,15/05/2018,303671,Global Digital Technology,IS Software,28545.38,
FCOS,FCOS,LA INTERNATIONAL COMPUTER CONSULTANTS LTD,22/05/2018,303679,Secure Global Services ,Contingent Labour,29899.54,
FCOS,FCOS,SOFTWARE AG (UK) LIMITED,15/05/2018,303884,Global Digital Technology,IS Software,33094.8,
FCOS,FCOS,SOFTWARE AG (UK) LIMITED,14/05/2018,303886,Global Digital Technology,IS Software,243342.25,
FCOS,FCOS,CACI LTD (INFORMATION INTELLIGENCE),14/05/2018,304293,Global Digital Technology,Capital Expenditure,29800,
FCOS,FCOS,McDONALD SCAFFOLDING (SERVICES) LTD,22/05/2018,304495,Secure Global Services ,Professional Services,140733.02,Y
FCOS,FCOS,HELLMANN WORLDWIDE LOGISTICS LTD,18/05/2018,304512,Secure Global Services ,Freight & Transport,128520.7,
FCOS,FCOS,HELLMANN WORLDWIDE LOGISTICS LTD,18/05/2018,304514,Secure Global Services ,Freight & Transport,263116.75,
FCOS,FCOS,HELLMANN WORLDWIDE LOGISTICS LTD,18/05/2018,304515,Secure Global Services ,Freight & Transport,315542.09,
FCOS,FCOS,OROSTREAM INTERNATIONAL CONTRACTS LTD,15/05/2018,304518,Secure Global Services ,Building Maintenance,32806.41,
FCOS,FCOS,OSI CONTRACTS LTD,21/05/2018,304520,Secure Global Services ,Building Maintenance,92119.54,
FCOS,FCOS,IMPULSE ENGINEERING LTD,17/05/2018,304790,Secure Global Services ,Building Works,39472.01,
FCOS,FCOS,NETCOMPANY UK LTD,17/05/2018,304793,Global Digital Technology,Professional Services,58074,
FCOS,FCOS,NETCOMPANY UK LTD,17/05/2018,304797,Global Digital Technology,Professional Services,61037,
FCOS,FCOS,SOFTWARE BOX LTD,17/05/2018,304799,Global Digital Technology,IS Hardware,32227.42,
FCOS,FCOS,TOYOTA GIBRALTAR STOCKHOLDINGS LTD,21/05/2018,304906,Secure Global Services ,Security Equipment,37992.35,Y
FCOS,FCOS,LILLEKER BROTHERS NIGERIA,18/05/2018,304915,Secure Global Services ,Building Works,271694.49,
FCOS,FCOS,OROSTREAM INTERNATIONAL CONTRACTS LTD,21/05/2018,305035,Secure Global Services ,Building Maintenance,76851.39,
FCOS,FCOS,SHETLAND SECURITY SERVICES LTD,21/05/2018,305053,Secure Global Services ,Professional Services,45891.9,
FCOS,FCOS,SUNBIRD SUPPORT SERVICES (PTY) LTD,23/05/2018,305186,Secure Global Services ,Building Maintenance,30820.53,Y
FCOS,FCOS,FOUR SEASONS INTERNATIONAL TRAVEL SERVICE HONG KONG CO LTD,30/05/2018,305190,Secure Global Services ,Freight & Transport,26906.00,Y
FCOS,FCOS,KOMCEPT SOLUTIONS LTD,29/05/2018,305572,Corporate,Security Equipment,29000,
FCOS,FCOS,LA INTERNATIONAL COMPUTER CONSULTANTS LTD,31/05/2018,305671,Global Digital Technology,Professional Services,26804,
FCOS,FCOS,ASTEA UK LTD,31/05/2018,305813,Global Digital Technology,FCOS Equipment - Capital,31512,
